fUSD/lending_fUSD_20260112
["ID","MTS","AMOUNT","RATE_DAILY","PERIOD"]
[401410123,1768190917810,10000.01,0.00013001,2]
[401410124,1768190917837,220.95954457,0.00013001,2]
[401410125,1768190917864,3026.05476368,0.00013001,2]
[401410126,1768190917890,384.9725004,0.00013001,2]
[401410127,1768190947549,-300.0,0.00013,2]
[401410128,1768190947580,-150.0,0.00013,2]
[401410129,1768190948408,-3587.20049772,0.00013001,2]
[401410130,1768190958914,-260.71170847,0.00012907,2]
[401410131,1768190958943,-254.7045,0.00012907,2]
[401410132,1768190964138,-402.78,0.00013001,2]
[401410133,1768190972074,-231.0191142,0.00013001,2]
[401410134,1768190973072,-335.24610775,0.00013001,2]
[401410135,1768190974653,-742.94779006,0.00013001,2]
[401410136,1768190974807,-10000.01,0.00013001,2]
[401410137,1768190974825,-10000.01,0.00013001,2]
[401410138,1768190974876,-10000.01,0.00013001,2]
[401410139,1768190989305,-10000.01,0.00013001,2]
[401410140,1768190989439,-10000.01,0.00013001,2]
[401410141,1768190989526,-10000.01,0.00013001,2]
[401410143,1768191002689,-1200.0,0.00012906,2]
[401410144,1768191002721,-300.0,0.00012906,2]
[401410145,1768191002780,-7000.01,0.00012907,2]
[401410148,1768191002877,-10000.01,0.00012907,2]
[401410154,1768191011680,-256.0,0.00012907,2]
[401410155,1768191011710,-53.18516578,0.00012907,2]
[401410156,1768191014027,-151.39680068,0.00012907,2]
[401410157,1768191015680,-252.177763,0.00012907,2]
[401410158,1768191017816,-300.0,0.00012907,2]
[401410159,1768191018883,-10000.01,0.00012907,2]
[401410160,1768191019078,-10000.01,0.00012907,2]
[401410161,1768191019245,-10000.01,0.00012907,2]
[401410162,1768191019730,-10000.01,0.00012907,2]
[401410163,1768191019863,-10000.01,0.00012907,2]
[401410164,1768191019999,-10000.01,0.00012907,2]
[401410165,1768191020953,-1049.17514544,0.00012907,2]
[401410166,1768191023519,-345.87696134,0.00012907,2]
[401410167,1768191025065,-238.94714755,0.00012907,2]
[401410168,1768191028954,-168.97270751,0.00012907,2]
[401410174,1768191031598,-109526.20054077,0.00012907,2]
[401410175,1768191031609,-4742.63241699,0.00012907,2]
[401410176,1768191031621,-4322.6063685,0.00012907,2]
[401410177,1768191031653,-289.88510599,0.00012907,2]
[401410178,1768191031665,-539.95972738,0.00012907,2]
[401410179,1768191031722,-27548.0536277,0.00012907,2]
[401410180,1768191031734,-22489.65936323,0.00012907,2]
[401410181,1768191031745,-1210.11489401,0.00012907,2]
[401410182,1768191031756,-5092.47474541,0.00012907,2]
[401410183,1768191031767,-677.36324147,0.00012907,2]
[401410184,1768191031779,-304.24350998,0.00012907,2]
[401410185,1768191031824,-300.0,0.00012907,2]
[401410191,1768191032659,-259.07070953,0.00012907,2]
[401410192,1768191034283,-238.42049879,0.00012907,2]
[401410193,1768191036670,-162.11424412,0.00012907,2]
[401410194,1768191037748,-1103.16022683,0.00012907,2]
[401410196,1768191038078,-2087.20004299,0.00012907,2]
[401410198,1768191038089,-2047.57159741,0.00012907,2]
[401410200,1768191038101,-386.1649995,0.00012907,2]
[401410202,1768191038112,-825.96294668,0.00012907,2]
[401410204,1768191038136,-791.20191441,0.00012907,2]
[401410206,1768191038149,-1523.42760257,0.00012907,2]
[401410232,1768191039918,-192.0,0.00012778,2]
[401410233,1768191039928,-1537.9999,0.00012907,2]
[401410234,1768191039993,-916.14782113,0.00012907,2]
[401410235,1768191040006,-315.32000001,0.00012907,2]
[401410236,1768191040017,-3269.64454867,0.00012907,2]
[401410237,1768191040029,-1649.6059058,0.00012907,2]
[401410238,1768191040048,-843.40981153,0.00012907,2]
[401410239,1768191040061,-400.88155885,0.00012907,2]
[401410240,1768191040072,-1476.86010638,0.00012907,2]
[401410241,1768191040085,-723562.83033207,0.00012907,2]
[401410242,1768191040095,-64394.38992448,0.00013001,2]
[401410243,1768191040105,-1000.0,0.00013007,2]
[401410244,1768191040115,-195.0,0.00013011,2]
[401410245,1768191040127,-300.0,0.00013014,2]
[401410246,1768191040139,-250.0,0.00013021,2]
[401410247,1768191040154,-192.0,0.00013026,2]
[401410248,1768191040164,-195.0,0.00013027,2]
[401410249,1768191040175,-300.0,0.00013059,2]
[401410250,1768191040185,-1101.0,0.00013093,2]
[401410251,1768191040198,-166.66,0.0001312,2]
[401410252,1768191040210,-200.0,0.00013137,2]
[401410253,1768191040220,-972.79917298,0.00013206,2]
[401410254,1768191040232,-1000.0,0.00013206,2]
[401410255,1768191040243,-166.66,0.0001338,2]
[401410256,1768191040255,-3240.0,0.00013434,2]
[401410257,1768191040266,-14966.28065333,0.00013462,2]
[401410258,1768191040276,-500.0,0.00013499,2]
[401410259,1768191040288,-166.99769429,0.00013499,2]
[401410260,1768191040297,-150.0,0.00013499,2]
[401410261,1768191040307,-151.53770348,0.00013499,2]
[401410262,1768191040317,-500.0,0.00013499,2]
[401410263,1768191040327,-150.0,0.00013499,2]
[401410264,1768191040337,-500.0,0.00013499,2]
[401410265,1768191040346,-150.0,0.00013499,2]
[401410266,1768191040356,-150.0,0.00013499,2]
[401410267,1768191040365,-150.0,0.00013499,2]
[401410268,1768191040374,-500.0,0.00013499,2]
[401410269,1768191040384,-500.0,0.00013499,2]
[401410270,1768191040393,-500.0,0.00013499,2]
[401410271,1768191040404,-500.0,0.00013499,2]
[401410272,1768191040413,-150.0,0.00013499,2]
[401410273,1768191040425,-150.0,0.00013499,2]
[401410274,1768191040437,-150.0,0.00013499,2]
[401410275,1768191040447,-500.0,0.00013554,2]
[401410276,1768191040456,-153.68270293,0.00013554,2]
[401410277,1768191040466,-500.0,0.00013554,2]
[401410278,1768191040476,-150.0,0.00013554,2]
[401410279,1768191040485,-500.0,0.00013554,2]
[401410281,1768191040495,-150.0,0.00013554,2]
[401410282,1768191040510,-150.0,0.00013554,2]
[401410283,1768191040520,-500.0,0.00013554,2]
[401410284,1768191040530,-500.0,0.00013554,2]
[401410285,1768191040541,-500.0,0.00013554,2]
[401410286,1768191040552,-500.0,0.00013554,2]
[401410287,1768191040561,-150.0,0.00013554,2]
[401410288,1768191040571,-500.0,0.00013555,2]
[401410289,1768191040582,-200.0,0.00013555,2]
[401410290,1768191040593,-200.0,0.00013555,2]
[401410291,1768191040604,-500.0,0.00013608,2]
[401410292,1768191040614,-500.0,0.00013609,2]
[401410293,1768191040624,-500.0,0.00013609,2]
[401410294,1768191040634,-150.0,0.00013609,2]
[401410295,1768191040646,-500.0,0.00013609,2]
[401410296,1768191040655,-150.0,0.00013609,2]
[401410297,1768191040665,-150.0,0.00013609,2]
[401410298,1768191040675,-500.0,0.00013609,2]
[401410299,1768191040687,-500.0,0.00013609,2]
[401410300,1768191040697,-500.0,0.00013609,2]
[401410301,1768191040706,-500.0,0.00013609,2]
[401410302,1768191040716,-150.0,0.00013609,2]
[401410303,1768191040725,-166.66,0.0001364,2]
[401410304,1768191040734,-500.0,0.00013663,2]
[401410305,1768191040743,-500.0,0.00013663,2]
[401410306,1768191040752,-150.0,0.00013663,2]
[401410307,1768191040762,-500.0,0.00013663,2]
[401410308,1768191040771,-216.21656454,0.00013663,2]
[401410309,1768191040780,-150.0,0.00013663,2]
[401410310,1768191040791,-500.0,0.00013663,2]
[401410311,1768191040802,-500.0,0.00013663,2]
[401410312,1768191040812,-500.0,0.00013663,2]
[401410313,1768191040823,-500.0,0.00013663,2]
[401410314,1768191040832,-150.0,0.00013663,2]
[401410315,1768191040843,-452.2081843,0.00013673,2]
[401410316,1768191040852,-194.63375646,0.00013677,2]
[401410317,1768191040866,-341.67884985,0.00013698,2]
[401410318,1768191040876,-500.0,0.00013698,2]
[401410319,1768191040886,-500.0,0.00013698,2]
[401410320,1768191040899,-500.0,0.00013698,2]
[401410321,1768191040908,-500.0,0.00013698,2]
[401410322,1768191041335,-500.0,0.00013698,2]
[401410323,1768191041363,-602.58106697,0.00013698,2]
[401410324,1768191041373,-500.0,0.00013698,2]
[401410325,1768191041385,-500.0,0.00013698,2]
[401410326,1768191041395,-500.0,0.00013698,2]
[401410327,1768191041404,-500.0,0.00013698,2]
[401410328,1768191041414,-500.0,0.00013698,2]
[401410329,1768191041427,-500.0,0.00013698,2]
[401410330,1768191041437,-500.0,0.00013698,2]
[401410331,1768191041446,-500.0,0.00013698,2]
[401410332,1768191041455,-500.0,0.00013698,2]
[401410333,1768191041466,-500.0,0.00013698,2]
[401410334,1768191041475,-500.0,0.00013698,2]
[401410335,1768191041484,-500.0,0.00013698,2]
[401410336,1768191041495,-330.30276578,0.00013698,2]
[401410337,1768191041504,-500.0,0.00013698,2]
[401410338,1768191041523,-500.0,0.00013698,2]
[401410339,1768191041534,-500.0,0.00013698,2]
[401410340,1768191041544,-500.0,0.00013698,2]
[401410341,1768191041554,-500.0,0.00013698,2]
[401410342,1768191041563,-404.51117323,0.00013698,2]
[401410343,1768191041573,-500.0,0.00013698,2]
[401410344,1768191041583,-200.63190487,0.00013698,2]
[401410345,1768191041593,-500.0,0.00013698,2]
[401410346,1768191041602,-518.76755169,0.00013698,2]
[401410347,1768191041612,-1269.29,0.00013698,2]
[401410348,1768191041621,-500.0,0.00013698,2]
[401410349,1768191041631,-500.0,0.00013698,2]
[401410350,1768191041640,-9999.99,0.00013699,2]
[401410351,1768191041651,-5445.96,0.00013699,2]
[401410352,1768191041661,-999.99,0.00013699,2]
[401410353,1768191041671,-709.68,0.00013699,2]
[401410354,1768191041680,-661.39,0.00013699,2]
[401410355,1768191041689,-500.0,0.00013718,2]
[401410356,1768191041699,-500.0,0.00013718,2]
[401410357,1768191041709,-194.69690525,0.00013718,2]
[401410358,1768191041719,-500.0,0.00013718,2]
[401410359,1768191041728,-215.29164788,0.00013718,2]
[401410360,1768191041738,-500.0,0.00013718,2]
[401410361,1768191041747,-500.0,0.00013718,2]
[401410362,1768191041757,-500.0,0.00013718,2]
[401410363,1768191041766,-500.0,0.00013718,2]
[401410364,1768191041775,-193.2011942,0.00013718,2]
[401410365,1768191041786,-274.75,0.00013718,2]
[401410366,1768191041796,-5931.22,0.00013718,2]
[401410367,1768191041808,-150.99,0.00013718,2]
[401410368,1768191041818,-1047.04298225,0.00013763,2]
[401410369,1768191041828,-150.99,0.00013773,2]
[401410370,1768191041838,-299.99,0.00013773,2]
[401410371,1768191041848,-5549.43,0.00013773,2]
[401410372,1768191041859,-9999.99,0.00013773,2]
[401410373,1768191041870,-500.0,0.00013773,2]
[401410374,1768191041881,-500.0,0.00013773,2]
[401410375,1768191041891,-500.0,0.00013773,2]
[401410376,1768191041900,-500.0,0.00013773,2]
[401410377,1768191041910,-500.0,0.00013773,2]
[401410378,1768191041921,-500.0,0.00013773,2]
[401410379,1768191041930,-500.0,0.00013773,2]
[401410380,1768191041940,-500.0,0.00013773,2]
[401410381,1768191041951,-551.14146089,0.00013773,2]
[401410382,1768191041961,-500.0,0.00013773,2]
[401410383,1768191041971,-20014.37,0.00013773,2]
[401410384,1768191041980,-9999.99,0.00013773,2]
[401410385,1768191041990,-5915.23,0.00013773,2]
[401410386,1768191042000,-2649.93,0.00013773,2]
[401410387,1768191042010,-1101.0,0.00013782,2]
[401410388,1768191042019,-150.0,0.00013786,2]
[401410389,1768191042029,-152.17779461,0.00013786,2]
[401410390,1768191042038,-1130.0,0.00013786,2]
[401410391,1768191042047,-500.0,0.00013786,2]
[401410392,1768191042057,-500.0,0.00013828,2]
[401410393,1768191042067,-500.0,0.00013828,2]
[401410394,1768191042076,-524.14309988,0.00013828,2]
[401410395,1768191042086,-500.0,0.00013828,2]
[401410396,1768191042095,-500.0,0.00013828,2]
[401410397,1768191042105,-500.0,0.00013828,2]
[401410398,1768191042114,-500.0,0.00013828,2]
[401410399,1768191042123,-150.0,0.00013841,2]
[401410400,1768191042133,-1130.0,0.00013841,2]
[401410401,1768191042143,-500.0,0.00013841,2]
[401410402,1768191042152,-647.15614815,0.00013882,2]
[401410403,1768191042162,-500.0,0.00013883,2]
[401410404,1768191042173,-191.44753185,0.00013883,2]
[401410405,1768191042183,-600.81457361,0.00013883,2]
[401410406,1768191042193,-569.59648638,0.00013883,2]
[401410407,1768191042203,-500.0,0.00013883,2]
[401410408,1768191042214,-500.0,0.00013883,2]
[401410409,1768191042224,-166.35,0.00013883,2]
[401410410,1768191042235,-150.0,0.00013896,2]
[401410411,1768191042244,-1130.0,0.00013896,2]
[401410412,1768191042254,-500.0,0.00013896,2]
[401410413,1768191042265,-500.0,0.00013937,2]
[401410414,1768191042276,-500.0,0.00013937,2]
[401410415,1768191042286,-500.0,0.00013937,2]
[401410416,1768191042297,-150.0,0.0001395,2]
[401410417,1768191042307,-1130.0,0.0001395,2]
[401410418,1768191042316,-500.0,0.0001395,2]
[401410419,1768191042326,-1269.29,0.00013972,2]
[401410420,1768191042336,-500.0,0.00013979,2]
[401410421,1768191042345,-500.0,0.00013992,2]
[401410422,1768191042355,-178.90011293,0.00013992,2]
[401410423,1768191042365,-500.0,0.00013992,2]
[401410424,1768191042375,-150.0,0.00014005,2]
[401410425,1768191042384,-1130.0,0.00014005,2]
[401410426,1768191042394,-500.0,0.00014005,2]
[401410427,1768191042404,-14966.28065333,0.00014017,2]
[401410428,1768191042414,-500.0,0.00014047,2]
[401410429,1768191042428,-500.0,0.00014047,2]
[401410430,1768191042438,-250.0,0.0001406,2]
[401410431,1768191042448,-1130.0,0.0001406,2]
[401410433,1768191042457,-500.0,0.0001406,2]
[401410434,1768191042467,-154.087793,0.0001406,2]
[401410436,1768191042476,-500.0,0.0001406,2]
[401410437,1768191042486,-150.0,0.0001406,2]
[401410438,1768191042496,-150.0,0.0001406,2]
[401410439,1768191042506,-150.0,0.0001406,2]
[401410441,1768191042515,-500.0,0.0001406,2]
[401410442,1768191042525,-150.0,0.0001406,2]
[401410443,1768191042534,-150.0,0.0001406,2]
[401410444,1768191042544,-150.0,0.0001406,2]
[401410445,1768191042555,-500.0,0.00014102,2]
[401410446,1768191042565,-272.87995463,0.00014102,2]
[401410447,1768191042574,-530.44606972,0.00014103,2]
[401410448,1768191042584,-202.52855456,0.00014103,2]
[401410449,1768191042594,-255.0,0.00014105,2]
[401410450,1768191042603,-1130.0,0.00014115,2]
[401410451,1768191042613,-359.06323949,0.00014115,2]
[401410452,1768191042623,-500.0,0.00014115,2]
[401410453,1768191042634,-150.0,0.00014115,2]
[401410454,1768191042643,-150.0,0.00014115,2]
[401410455,1768191042654,-150.0,0.00014115,2]
[401410456,1768191042664,-500.0,0.00014115,2]
[401410457,1768191042674,-150.96535916,0.00014115,2]
[401410458,1768191042685,-150.0,0.00014115,2]
[401410459,1768191042695,-150.0,0.00014115,2]
[401410460,1768191042706,-302.0,0.00014155,2]
[401410461,1768191042717,-500.0,0.00014157,2]
[401410462,1768191042727,-1130.0,0.0001417,2]
[401410463,1768191042738,-252.87382707,0.0001417,2]
[401410464,1768191042749,-150.0,0.0001417,2]
[401410465,1768191042759,-150.0,0.0001417,2]
[401410466,1768191042769,-150.0,0.0001417,2]
[401410467,1768191042780,-282.10315697,0.0001417,2]
[401410468,1768191042791,-160.92556746,0.0001417,2]
[401410469,1768191042805,-204.15967263,0.0001417,2]
[401410470,1768191042815,-1680.0,0.00014197,2]
[401410471,1768191042827,-600.0,0.00014198,2]
[401410472,1768191042839,-600.0,0.00014198,2]
[401410473,1768191042850,-600.0,0.00014198,2]
[401410474,1768191042861,-600.0,0.00014198,2]
[401410475,1768191042871,-349.42405656,0.00014198,2]
[401410476,1768191042882,-2500.0,0.00014198,2]
[401410477,1768191042893,-195.0,0.00014198,2]
[401410478,1768191042903,-500.0,0.00014211,2]
[401410479,1768191042914,-1130.0,0.00014224,2]
[401410480,1768191042923,-202.62137386,0.00014224,2]
[401410481,1768191042934,-150.0,0.00014224,2]
[401410482,1768191042945,-296.09401039,0.00014224,2]
[401410483,1768191042955,-152.06497503,0.00014225,2]
[401410484,1768191042965,-1269.29,0.00014246,2]
[401410485,1768191042976,-420.0,0.00014257,2]
[401410486,1768191042986,-1680.0,0.00014263,2]
[401410487,1768191042996,-500.0,0.00014266,2]
[401410488,1768191043006,-1130.0,0.00014279,2]
[401410489,1768191043016,-150.0,0.00014279,2]
[401410490,1768191043027,-1110.78417922,0.00014307,5]
[401410491,1768191043037,-2500.0,0.00014308,2]
[401410492,1768191043047,-2500.0,0.00014308,2]
[401410493,1768191043057,-2500.0,0.00014308,2]
[401410494,1768191043067,-496.45597914,0.00014308,2]
[401410495,1768191043077,-250.0,0.00014308,2]
[401410496,1768191043087,-300.0,0.00014308,2]
[401410497,1768191043098,-195.0,0.00014308,2]
[401410498,1768191043107,-300.0,0.00014308,2]
[401410499,1768191043118,-250.0,0.00014308,2]
[401410500,1768191043128,-300.0,0.00014308,2]
[401410501,1768191043138,-195.0,0.00014308,2]
[401410502,1768191043149,-300.0,0.00014308,2]
[401410503,1768191043158,-1936.99946493,0.00014308,2]
[401410504,1768191043168,-500.0,0.00014321,2]
[401410505,1768191043179,-500.0,0.00014333,2]
[401410506,1768191043190,-1130.0,0.00014334,2]
[401410507,1768191043201,-178.73,0.00014334,2]
[401410508,1768191043213,-500.0,0.00014376,2]
[401410509,1768191043225,-1801.08,0.00014379,2]
[401410510,1768191043235,-1130.0,0.00014389,2]
[401410511,1768191043247,-500.0,0.00014431,2]
[401410512,1768191043258,-1130.0,0.00014444,2]
[401410513,1768191043269,-274.75,0.00014481,2]
[401410514,1768191043279,-280.2930836,0.00014485,2]
[401410515,1768191043290,-1130.0,0.00014498,2]
[401410516,1768191043300,-1101.0,0.00014507,2]
[401410519,1768191043309,-1269.29,0.0001452,2]
[401410522,1768191043319,-1130.0,0.00014553,2]
[401410523,1768191043329,-14966.28065333,0.00014571,2]
[401410524,1768191043340,-1130.0,0.00014608,2]
[401410525,1768191043359,-1130.0,0.00014663,2]
[401410526,1768191043369,-1130.0,0.00014718,2]
[401410527,1768191043379,-1130.0,0.00014772,2]
[401410529,1768191043388,-216.05,0.00014778,2]
[401410530,1768191043399,-1269.29,0.00014794,2]
[401410531,1768191043408,-1130.0,0.00014827,2]
[401410533,1768191043419,-189.76,0.00014878,2]
[401410534,1768191043431,-1130.0,0.00014882,2]
[401410536,1768191043441,-332.57610705,0.00014908,2]
[401410537,1768191043452,-1130.0,0.00014937,2]
[401410538,1768191043463,-271.58568813,0.00014958,5]
[401410539,1768191043473,-150.0,0.00014958,5]
[401410540,1768191043482,-200.0,0.0001496,2]
[401410541,1768191043493,-250.0,0.00014975,2]
[401410542,1768191043503,-268.06518829,0.00014975,2]
[401410543,1768191043512,-500.0,0.00014975,2]
[401410544,1768191043522,-998.0,0.00014975,2]
[401410545,1768191043532,-266.15702234,0.00014975,2]
[401410546,1768191043542,-500.0,0.00014975,2]
[401410547,1768191043553,-500.0,0.00014975,2]
[401410548,1768191043563,-500.0,0.00014975,2]
[401410549,1768191043573,-621.07435029,0.00014975,2]
[401410550,1768191043585,-354.6611943,0.00014975,2]
[401410551,1768191043595,-620.0,0.00014975,2]
[401410552,1768191043606,-587.42192138,0.00014975,2]
[401410553,1768191043616,-1000.0,0.00014975,2]
[401410554,1768191043627,-250.0,0.00014975,2]
[401410555,1768191043638,-250.0,0.00014975,2]
[401410556,1768191043650,-1000.0,0.00014975,2]
[401410557,1768191043659,-250.0,0.00014975,2]
[401410558,1768191043669,-274.26884757,0.00014975,2]
[401410559,1768191043681,-1000.0,0.00014975,2]
[401410560,1768191043691,-250.0,0.00014975,2]
[401410561,1768191043701,-1000.0,0.00014975,2]
[401410562,1768191043711,-250.0,0.00014975,2]
[401410563,1768191043722,-1000.0,0.00014975,2]
[401410564,1768191043732,-250.0,0.00014975,2]
[401410565,1768191043742,-1000.0,0.00014975,2]
[401410566,1768191043754,-1000.0,0.00014975,2]
[401410567,1768191043764,-250.0,0.00014975,2]
[401410568,1768191043777,-1000.0,0.00014975,2]
[401410569,1768191043787,-250.0,0.00014975,2]
[401410570,1768191043798,-1000.0,0.00014975,2]
[401410571,1768191043808,-250.0,0.00014975,2]
[401410572,1768191043819,-1000.0,0.00014975,2]
[401410573,1768191043830,-250.0,0.00014975,2]
[401410574,1768191043841,-1000.0,0.00014975,2]
[401410575,1768191043852,-250.0,0.00014975,2]
[401410576,1768191043862,-1000.0,0.00014975,2]
[401410577,1768191043873,-250.0,0.00014975,2]
[401410578,1768191043883,-1125.63397898,0.00014975,2]
[401410579,1768191043893,-262.80813108,0.00014975,2]
[401410580,1768191043903,-533.88981491,0.00014975,2]
[401410581,1768191043913,-322.6107,0.00014975,2]
[401410582,1768191043923,-683.82185525,0.00014975,2]
[401410583,1768191043932,-250.0,0.00014975,2]
[401410584,1768191043942,-250.0,0.00014975,2]
[401410585,1768191043952,-250.0,0.00014975,2]
[401410586,1768191043962,-250.0,0.00014975,2]
[401410587,1768191043971,-250.0,0.00014975,2]
[401410588,1768191043981,-250.0,0.00014975,2]
[401410589,1768191043991,-250.0,0.00014975,2]
[401410590,1768191044001,-500.0,0.00014975,2]
[401410591,1768191044011,-250.0,0.00014975,2]
[401410592,1768191044021,-596.45794467,0.00014975,2]
[401410593,1768191044031,-250.0,0.00014975,2]
[401410594,1768191044041,-250.0,0.00014975,2]
[401410595,1768191044051,-250.0,0.00014975,2]
[401410596,1768191044060,-250.0,0.00014975,2]
[401410597,1768191044070,-270.2171612,0.00014975,2]
[401410598,1768191044084,-250.0,0.00014975,2]
[401410599,1768191044093,-250.0,0.00014975,2]
[401410600,1768191044103,-202.5130151,0.00014975,2]
[401410601,1768191044113,-151.25256783,0.00014975,2]
[401410602,1768191044123,-1130.0,0.00014991,2]
[401410603,1768191044134,-1138.50729897,0.00015046,2]
[401410604,1768191044144,-1269.29,0.00015068,2]
[401410605,1768191044157,-151.0,0.000151,2]
[401410606,1768191044168,-14966.28065333,0.00015126,2]
[401410607,1768191044179,-274.75,0.00015243,2]
[401410608,1768191044189,-1101.0,0.00015271,2]
[401410609,1768191044199,-433.0,0.00015301,2]
[401410610,1768191044209,-1269.29,0.00015342,2]
[401410611,1768191044220,-452.20818428,0.00015396,2]
[401410612,1768191044232,-166.35,0.00015426,2]
[401410613,1768191044243,-180.0,0.00015456,2]
[401410614,1768191044254,-553.64373807,0.00015523,2]
[401410615,1768191044264,-152.06497503,0.00015542,2]
[401410616,1768191044276,-1269.29,0.00015616,2]
[401410617,1768191044286,-2351.0,0.00015616,2]
[401410618,1768191044298,-587.0,0.00015635,2]
[401410619,1768191044309,-3731.00451843,0.0001564,2]
[401410620,1768191044319,-916.0,0.00015642,2]
[401410621,1768191044328,-14966.28065333,0.00015681,2]
[401410622,1768191044338,-191.78307443,0.00015699,2]
[401410623,1768191044347,-293.83522912,0.00015746,2]
[401410624,1768191044357,-38328.5714249,0.00015793,2]
[401410625,1768191044366,-500.0,0.00015863,2]
[401410626,1768191044376,-1269.29,0.0001589,2]
[401410627,1768191044387,-4808.9585821,0.000159,2]
[401410628,1768191044397,-28559.0,0.00016,2]
[401410629,1768191044409,-274.75,0.00016005,2]
[401410630,1768191044420,-500.0,0.00016013,2]
[401410631,1768191044430,-574.12855637,0.00016071,2]
[401410632,1768191044440,-1101.0,0.00016074,2]
[401410633,1768191044449,-505.64,0.00016082,2]
[401410634,1768191044459,-1323.15,0.00016082,2]
[401410635,1768191044469,-9999.99,0.00016116,2]
[401410636,1768191044479,-936.76429922,0.00016136,2]
[401410637,1768191044489,-1269.29,0.00016164,2]
[401410638,1768191044500,-150.0,0.000162,2]
[401410639,1768191044509,-150.0,0.000162,2]
[401410640,1768191044519,-150.0,0.000162,2]
[401410641,1768191044528,-150.0,0.000162,2]
[401410642,1768191044537,-150.0,0.000162,2]
[401410643,1768191044546,-150.0,0.000162,2]
[401410644,1768191044556,-150.5110912,0.000162,2]
[401410645,1768191044565,-150.48103859,0.000162,2]
[401410646,1768191044575,-150.0,0.000162,2]
[401410647,1768191044584,-150.64069561,0.000162,2]
[401410648,1768191044593,-150.0,0.000162,2]
[401410649,1768191044603,-150.0,0.000162,2]
[401410650,1768191044612,-150.0,0.000162,2]
[401410651,1768191044622,-350.68764993,0.000162,2]
[401410652,1768191044636,-150.0,0.000162,2]
[401410653,1768191044646,-1000.0,0.000162,2]
[401410654,1768191044657,-350.68764993,0.00016218,2]
[401410655,1768191044667,-150.0,0.00016225,2]
[401410656,1768191044676,-7229.0,0.00016236,2]
[401410657,1768191044686,-14966.28065333,0.00016236,2]
[401410658,1768191044696,-350.68764993,0.00016236,2]
[401410659,1768191044705,-350.68764993,0.00016255,2]
[401410660,1768191044715,-350.68764993,0.00016273,2]
[401410661,1768191044725,-350.68764993,0.00016291,2]
[401410662,1768191044736,-350.68764993,0.00016309,2]
[401410663,1768191044746,-350.68764993,0.00016327,2]
[401410664,1768191044755,-150.0,0.00016329,2]
[401410665,1768191044764,-150.0,0.00016329,2]
[401410666,1768191044776,-150.0,0.00016338,2]
[401410667,1768191044785,-642.94,0.00016344,2]
[401410668,1768191044795,-334.5472959,0.00016344,2]
[401410669,1768191044806,-1000.0,0.00016344,2]
[401410670,1768191044816,-350.68764993,0.00016345,2]
[401410671,1768191044826,-150.0,0.0001635,2]
[401410672,1768191044836,-171.53,0.00016356,2]
[401410673,1768191044845,-467.15,0.00016356,2]
[401410674,1768191044856,-166.31,0.00016356,2]
[401410675,1768191044867,-1021.51,0.00016356,2]
[401410676,1768191044878,-350.68764993,0.00016364,2]
[401410677,1768191044889,-150.0,0.0001638,2]
[401410678,1768191044900,-350.68764993,0.00016382,2]
[401410679,1768191044910,-350.68764993,0.000164,2]
[401410680,1768191044921,-162.0,0.000164,2]
[401410681,1768191044930,-843.0,0.000164,2]
[401410682,1768191044940,-8552.2602803,0.00016416,2]